bitfinex/quotes_BTCUSD_20250618
["timestamp","ask_amount","ask_price","bid_price","bid_amount"]
[1750208629363,0.74064731,105040.0,105030.0,0.06105986]
[1750208629832,0.75016731,105040.0,105030.0,0.06105986]
[1750208630680,0.74064731,105040.0,105030.0,0.06105986]
[1750208631399,0.76352209,105040.0,105030.0,0.06105986]
[1750208633118,0.773042,105040.0,105030.0,0.06105986]
[1750208633554,0.78197869,105040.0,105030.0,0.06105986]
[1750208633742,0.79149878,105040.0,105030.0,0.06105986]
[1750208633872,0.79149874,105040.0,105030.0,0.06105986]
[1750208634258,0.78197865,105040.0,105030.0,0.06105986]
[1750208635750,0.79149865,105040.0,105030.0,0.06105986]
[1750208636181,0.78197865,105040.0,105030.0,0.06105986]
[1750208636393,0.77245874,105040.0,105030.0,0.06105986]
[1750208638102,0.77245879,105040.0,105030.0,0.06105986]
[1750208639607,0.77245886,105040.0,105030.0,0.06105986]
[1750208640479,0.78197886,105040.0,105030.0,0.06105986]
[1750208640916,5.78637795,105040.0,105030.0,0.06105986]
[1750208641174,5.78637795,105040.0,105020.0,0.1387522]
[1750208641175,0.54946385,105030.0,105020.0,0.1387522]
[1750208641382,0.5991498,105030.0,105020.0,0.02598117]
[1750208641599,0.81485373,105030.0,105020.0,0.08848117]
[1750208641820,0.79697933,105030.0,105020.0,0.08848117]
[1750208642047,0.80533442,105030.0,105020.0,0.08848117]
[1750208642493,0.77852157,105030.0,105020.0,0.08848117]
[1750208642756,0.77852157,105030.0,105020.0,0.09048117]
[1750208643230,0.78745192,105030.0,105020.0,0.09048117]
[1750208643700,0.78745204,105030.0,105020.0,0.09048117]
[1750208644403,0.77852157,105030.0,105020.0,0.09048117]
[1750208645390,0.78449305,105030.0,105020.0,0.09048117]
[1750208646687,0.56878912,105030.0,105020.0,0.09048117]
[1750208646890,0.78449305,105030.0,105020.0,0.09048117]
[1750208647240,0.603591,105030.0,105020.0,0.09048117]
[1750208647444,0.54620707,105030.0,105020.0,0.09048117]
[1750208647868,0.5557277,105030.0,105020.0,0.09048117]
[1750208648072,0.56524851,105030.0,105020.0,0.09048117]
[1750208648514,0.78095244,105030.0,105020.0,0.09048117]
[1750208648718,0.77143163,105030.0,105020.0,0.09048117]
[1750208649886,0.78095235,105030.0,105020.0,0.09048117]
[1750208650547,0.75567092,105030.0,105020.0,0.0645]
[1750208650757,0.97137485,105030.0,105020.0,0.0645]
[1750208651179,0.75567092,105030.0,105020.0,0.0645]
[1750208651438,0.97137485,105030.0,105020.0,0.0645]
[1750208651650,0.77143208,105030.0,105020.0,0.0645]
[1750208651870,0.78095298,105030.0,105020.0,0.0645]
[1750208652080,0.79047406,105030.0,105020.0,0.0645]
[1750208652492,0.78095298,105030.0,105020.0,0.0645]
[1750208653132,0.79047397,105030.0,105020.0,0.0645]
[1750208654047,0.5652495,105030.0,105020.0,0.0645]
[1750208654260,0.78095343,105030.0,105020.0,0.0645]
[1750208655071,0.55572851,105030.0,105020.0,0.0645]
[1750208655295,0.77143244,105030.0,105020.0,0.0645]
[1750208657217,0.76191154,105030.0,105020.0,0.0645]
[1750208657422,0.76187118,105030.0,105020.0,0.0645]
[1750208657638,0.77139199,105030.0,105020.0,0.0645]
[1750208657881,0.02884626,105030.0,105020.0,0.0645]
[1750208658095,0.02326286,105050.0,105040.0,0.061]
[1750208658307,0.00042266,105050.0,105040.0,0.15724176]
[1750208658529,0.15870266,105050.0,105040.0,0.15724176]
[1750208659183,0.49870266,105050.0,105040.0,0.15724176]
[1750208659426,0.50070266,105050.0,105040.0,0.15724176]
[1750208660952,0.51973976,105050.0,105040.0,0.15724176]
[1750208661167,0.50822112,105050.0,105040.0,0.15724176]
[1750208661380,0.50822112,105050.0,105040.0,0.15924176]
[1750208661381,0.49870266,105050.0,105040.0,0.15924176]
[1750208662040,0.50822121,105050.0,105040.0,0.15924176]
[1750208662245,0.49870266,105050.0,105040.0,0.15924176]
[1750208662456,0.50822121,105050.0,105040.0,0.15924176]
[1750208662881,0.51773994,105050.0,105040.0,0.15924176]
[1750208663117,0.74296278,105050.0,105040.0,0.15924176]
[1750208663547,0.75248187,105050.0,105040.0,0.15924176]
[1750208665684,0.92383012,105050.0,105040.0,0.063]
[1750208665903,0.91431121,105050.0,105040.0,0.063]
[1750208667491,0.91431121,105050.0,105040.0,0.061]
[1750208667962,0.69860728,105050.0,105040.0,0.061]
[1750208668230,0.91431121,105050.0,105040.0,0.061]
[1750208670317,0.73344396,105050.0,105040.0,0.061]
[1750208670544,0.52725912,105050.0,105040.0,0.061]
[1750208670769,0.34042266,105050.0,105040.0,0.071288]
[1750208670989,0.34042266,105050.0,105040.0,0.16752976]
[1750208670990,0.49862266,105050.0,105040.0,0.16752976]
[1750208671219,0.49862266,105050.0,105040.0,0.24378196]
[1750208672098,0.49862266,105050.0,105040.0,0.23349396]
[1750208673009,0.50814112,105050.0,105040.0,0.23349396]
[1750208673226,0.49862266,105050.0,105040.0,0.23349396]
[1750208673721,0.50814121,105050.0,105040.0,0.23349396]
[1750208673965,0.49862266,105050.0,105040.0,0.23349396]
[1750208674202,0.50814112,105050.0,105040.0,0.23349396]
[1750208674954,0.50814112,105050.0,105040.0,0.15724176]
[1750208675191,0.50814112,105050.0,105040.0,0.23349396]
[1750208676377,0.51765976,105050.0,105040.0,0.23349396]
[1750208676592,0.75240142,105050.0,105040.0,0.15724176]
[1750208676807,0.9427883,105050.0,105040.0,0.061]
[1750208678620,0.7428835,105050.0,105040.0,0.061]
[1750208678837,0.52717957,105050.0,105040.0,0.061]
[1750208679042,0.7428835,105050.0,105040.0,0.061]
[1750208679870,0.73336432,105050.0,105040.0,0.061]
[1750208680077,0.74288341,105050.0,105040.0,0.061]
[1750208680497,0.75240268,105050.0,105040.0,0.061]
[1750208680707,0.74288341,105050.0,105040.0,0.061]
[1750208680916,0.51765985,105050.0,105040.0,0.061]
[1750208681121,0.50810121,105050.0,105040.0,0.071288]
[1750208681342,0.50810121,105050.0,105040.0,0.1372522]
[1750208681343,0.52713876,105050.0,105040.0,0.1372522]
[1750208681546,0.52713867,105050.0,105040.0,0.1372522]
[1750208682349,0.51761985,105050.0,105040.0,0.1372522]
[1750208683035,0.50810121,105050.0,105040.0,0.1372522]
[1750208683260,0.33790266,105050.0,105040.0,0.4915378]
[1750208684117,0.33790266,105050.0,105040.0,0.23349396]
[1750208685179,0.33790266,105050.0,105040.0,0.23549396]
[1750208689076,0.33790266,105050.0,105040.0,0.45119789]
[1750208690360,0.34742112,105050.0,105040.0,0.45119789]
[1750208691119,0.33790266,105050.0,105040.0,0.45119789]
[1750208691537,0.33790266,105050.0,105040.0,0.23549396]
[1750208692185,0.33790266,105050.0,105040.0,0.45119789]
[1750208694759,0.33790266,105050.0,105040.0,0.5382199]
[1750208695522,0.33790266,105050.0,105040.0,0.45119789]
[1750208697406,0.00028703,105060.0,105050.0,0.0633]
[1750208697628,0.34028703,105060.0,105050.0,0.37524569]
[1750208697839,0.00028703,105060.0,105050.0,0.37524569]
[1750208698066,0.00028703,105060.0,105050.0,0.15954176]
[1750208698268,0.00028703,105060.0,105050.0,0.205719]
[1750208698475,0.34980458,105060.0,105050.0,0.37524569]
[1750208698660,0.34028703,105060.0,105050.0,0.37524569]
[1750208700779,0.00028703,105060.0,105050.0,0.56763122]
[1750208700986,0.00028703,105060.0,105050.0,0.75009134]
[1750208701191,0.00028703,105060.0,105050.0,0.86527865]
[1750208701407,0.00028703,105060.0,105050.0,0.85575974]
[1750208701638,0.00028703,105060.0,105050.0,0.86527874]
[1750208702101,0.00028703,105060.0,105050.0,0.87479783]
[1750208702349,0.00028703,105060.0,105050.0,0.88431656]
[1750208702629,0.00028703,105060.0,105050.0,0.59169134]
[1750208702896,0.00028703,105060.0,105050.0,0.79193134]
[1750208703141,0.00028703,105060.0,105050.0,0.81096943]
[1750208703399,0.00028703,105060.0,105050.0,0.82048834]
[1750208703650,0.00028703,105060.0,105050.0,0.81096952]
[1750208703911,0.00028703,105060.0,105050.0,0.91663765]
[1750208704348,0.00028703,105060.0,105050.0,0.90711874]
[1750208704777,0.00028703,105060.0,105050.0,0.89759974]
[1750208704989,0.00028703,105060.0,105050.0,0.60150581]
[1750208705227,0.00028703,105060.0,105050.0,0.59198654]
[1750208705466,0.00028703,105060.0,105050.0,0.39178654]
[1750208705688,0.00028703,105060.0,105050.0,0.60146581]
[1750208705900,0.00028703,105060.0,105050.0,0.59190654]
[1750208706318,0.00028703,105060.0,105050.0,0.39178654]
[1750208706535,0.00028703,105060.0,105050.0,0.59194654]
[1750208706766,0.00028703,105060.0,105050.0,0.39178654]
[1750208706982,0.22550851,105060.0,105050.0,0.20334176]
[1750208707196,0.00980458,105060.0,105050.0,0.16154176]
[1750208707405,0.00028703,105060.0,105050.0,0.20334176]
[1750208710600,0.00980458,105060.0,105050.0,0.20334176]
[1750208711919,0.01932231,105060.0,105050.0,0.16154176]
[1750208712129,0.01932231,105060.0,105050.0,0.20378176]
[1750208713440,0.00980458,105060.0,105050.0,0.20378176]
[1750208713645,0.00028703,105060.0,105050.0,0.20378176]
[1750208714057,0.00028703,105060.0,105050.0,0.28003396]
[1750208714284,0.00028703,105060.0,105050.0,0.49573789]
[1750208714923,0.00028703,105060.0,105050.0,0.28003396]
[1750208715137,0.23502633,105060.0,105050.0,0.20378176]
[1750208715348,0.2540626,105060.0,105050.0,0.16154176]
[1750208715566,0.25406251,105060.0,105050.0,0.0653]
[1750208715804,0.26358088,105060.0,105050.0,0.0653]
[1750208716010,0.03835858,105060.0,105050.0,0.0653]
[1750208716222,0.03835849,105060.0,105050.0,0.0653]
[1750208716674,0.04787676,105060.0,105050.0,0.0653]
[1750208717745,0.20775676,105060.0,105050.0,0.0653]
[1750208717956,0.19823921,105060.0,105050.0,0.0653]
[1750208718182,0.18872094,105060.0,105050.0,0.0653]
[1750208718643,0.19823921,105060.0,105050.0,0.0653]
[1750208718854,0.19823912,105060.0,105050.0,0.0653]
[1750208719690,0.18872094,105060.0,105050.0,0.0653]
[1750208719909,0.19823921,105060.0,105050.0,0.0653]
[1750208720741,0.03835912,105060.0,105050.0,0.0653]
[1750208720959,0.19815912,105060.0,105050.0,0.0653]
[1750208721190,0.17912231,105060.0,105050.0,0.0653]
[1750208721401,0.17912231,105060.0,105050.0,0.10524961]
[1750208721858,0.18864022,105060.0,105050.0,0.10524961]
[1750208722096,0.00028703,105060.0,105050.0,0.10524961]
[1750208722357,0.00980458,105060.0,105050.0,0.0653]
[1750208722569,0.01932231,105060.0,105050.0,0.0653]
[1750208722788,0.01932231,105060.0,105050.0,0.28100393]
[1750208722789,0.00980458,105060.0,105050.0,0.28100393]
[1750208723006,0.01932231,105060.0,105050.0,0.28100393]
[1750208723218,0.01932231,105060.0,105050.0,0.0653]
[1750208723482,0.02884022,105060.0,105050.0,0.0653]
[1750208723932,0.00028703,105060.0,105050.0,0.0653]
[1750208724365,0.77527161,105070.0,105050.0,0.002]
[1750208724366,0.42915671,105070.0,105050.0,0.002]
[1750208724619,0.42915671,105070.0,105060.0,0.061]
[1750208724865,0.42856358,105070.0,105060.0,0.061]
[1750208725105,0.41963925,105070.0,105060.0,0.061]
[1750208725319,0.42915671,105070.0,105060.0,0.061]
[1750208725758,0.43808114,105070.0,105060.0,0.061]
[1750208725983,0.42915671,105070.0,105060.0,0.061]
[1750208726204,0.41963925,105070.0,105060.0,0.061]
[1750208726414,0.4380848,105070.0,105060.0,0.061]
[1750208726636,0.76915671,105070.0,105060.0,0.061]
[1750208727277,0.75963925,105070.0,105060.0,0.061]
[1750208727481,0.7833455,105070.0,105060.0,0.061]
[1750208727686,0.79227372,105070.0,105060.0,0.061]
[1750208728070,0.81013009,105070.0,105060.0,0.061]
[1750208728514,0.79227372,105070.0,105060.0,0.061]
[1750208728734,0.78275635,105070.0,105060.0,0.061]
[1750208728951,0.77323907,105070.0,105060.0,0.061]
[1750208729584,0.77323898,105070.0,105060.0,0.061]
[1750208729809,0.7732388,105070.0,105060.0,0.061]
[1750208730157,0.7827559,105070.0,105060.0,0.061]
[1750208730578,0.7732388,105070.0,105060.0,0.061]
[1750208731032,0.76431076,105070.0,105060.0,0.061]
[1750208731729,0.78275614,105070.0,105060.0,0.061]
[1750208732147,0.77382777,105070.0,105060.0,0.061]
[1750208732609,0.77323963,105070.0,105060.0,0.061]
[1750208732836,0.79109857,105070.0,105060.0,0.061]
[1750208733069,0.57539464,105070.0,105060.0,0.061]
[1750208733295,0.77323963,105070.0,105060.0,0.061]
[1750208733757,0.76372271,105070.0,105060.0,0.061]
[1750208733968,0.77323963,105070.0,105060.0,0.061]
[1750208734189,0.7911002,105070.0,105060.0,0.061]
[1750208734401,0.79610073,105070.0,105060.0,0.061]
[1750208734616,0.80561774,105070.0,105060.0,0.061]
[1750208735965,0.81513484,105070.0,105060.0,0.061]
[1750208736236,0.80561774,105070.0,105060.0,0.061]
[1750208736481,0.79610073,105070.0,105060.0,0.061]
[1750208736728,0.76431076,105070.0,105060.0,0.061]
[1750208736950,0.79610707,105070.0,105060.0,0.061]
[1750208737855,0.78659025,105070.0,105060.0,0.061]
[1750208738294,0.79610726,105070.0,105060.0,0.061]
[1750208738521,0.40164949,105070.0,105060.0,0.061]
[1750208738810,0.3556643,105070.0,105060.0,0.40579226]
[1750208739039,0.0156643,105070.0,105060.0,0.92679745]
[1750208739280,0.0156643,105070.0,105060.0,0.94583318]
[1750208740926,0.0156643,105070.0,105060.0,0.7207515]
[1750208741140,0.0156643,105070.0,105060.0,0.73026923]
[1750208741833,0.0156643,105070.0,105060.0,0.73226923]
[1750208743356,0.0156643,105070.0,105060.0,0.73226932]
[1750208743799,0.0156643,105070.0,105060.0,0.74178705]
[1750208744672,0.0156643,105070.0,105060.0,0.5262875]
[1750208744882,0.0156643,105070.0,105060.0,0.74178705]
[1750208745098,0.0156643,105070.0,105060.0,0.73226932]
[1750208745813,0.0156643,105070.0,105060.0,0.74178705]
[1750208746529,0.0156643,105070.0,105060.0,0.73226932]
[1750208746772,0.0156643,105070.0,105060.0,0.74178705]
[1750208747228,0.0156643,105070.0,105060.0,0.73226932]
[1750208748414,0.0156643,105070.0,105060.0,0.74178705]
[1750208748879,0.0156643,105070.0,105060.0,0.73226932]
[1750208749569,0.0156643,105070.0,105060.0,0.74681017]
[1750208749815,0.0156643,105070.0,105060.0,0.74681008]
[1750208750027,0.0156643,105070.0,105060.0,0.74681017]
[1750208750715,0.0156643,105070.0,105060.0,0.74681026]
[1750208750930,0.0156643,105070.0,105060.0,0.75632808]
[1750208751145,0.0156643,105070.0,105060.0,0.75632744]
[1750208751363,0.0156643,105070.0,105060.0,0.74680971]
[1750208751577,0.0156643,105070.0,105060.0,0.75632744]
[1750208751844,0.0156643,105070.0,105060.0,0.74680971]
[1750208752279,0.0156643,105070.0,105060.0,0.73729189]
[1750208752917,0.0156643,105070.0,105060.0,0.74680971]
[1750208754030,0.0156643,105070.0,105060.0,0.39369925]
[1750208754263,0.0156643,105070.0,105060.0,0.81860247]
[1750208754507,0.0156643,105070.0,105060.0,0.82812047]
[1750208754723,0.0156643,105070.0,105060.0,0.81860247]
[1750208755202,0.0156643,105070.0,105060.0,0.82812038]
[1750208755456,0.0156643,105070.0,105060.0,0.9242696]
[1750208755691,0.0156643,105070.0,105060.0,0.92426896]
[1750208755981,0.0156643,105070.0,105060.0,0.92426905]
[1750208756231,0.0156643,105070.0,105060.0,0.91475123]
[1750208756474,0.0156643,105070.0,105060.0,0.90523332]
[1750208756937,0.0156643,105070.0,105060.0,0.92426905]
[1750208758145,0.0156643,105070.0,105060.0,1.1397686]
[1750208759127,0.0156643,105070.0,105060.0,1.13025087]
[1750208759305,0.0156643,105070.0,105060.0,1.13976815]
[1750208759965,0.0156643,105070.0,105060.0,1.13025051]
[1750208760160,0.0156643,105070.0,105060.0,0.91475096]
[1750208760631,0.0156643,105070.0,105060.0,0.88619696]
[1750208760831,0.0156643,105070.0,105060.0,0.68531696]
[1750208760954,0.0156643,105070.0,105060.0,0.88607696]
[1750208761454,0.0156643,105070.0,105060.0,0.90511296]
[1750208761661,0.0156643,105070.0,105060.0,0.90511305]
[1750208762623,0.0156643,105070.0,105060.0,0.68619138]
[1750208762834,0.0156643,105070.0,105060.0,0.58996216]
[1750208763057,0.0156643,105070.0,105060.0,0.37446261]
[1750208763513,0.0156643,105070.0,105060.0,0.37454261]
[1750208763728,0.0156643,105070.0,105060.0,0.59956053]
[1750208763943,0.0156643,105070.0,105060.0,0.6090788]
[1750208764152,0.0156643,105070.0,105060.0,0.69188016]
[1750208764371,0.0156643,105070.0,105060.0,0.68236189]
[1750208764590,0.0156643,105070.0,105060.0,0.69188016]
[1750208765020,0.0156643,105070.0,105060.0,0.68236189]
[1750208765461,0.0156643,105070.0,105060.0,0.89176556]
[1750208766554,0.0156643,105070.0,105060.0,0.91080129]
[1750208767006,0.0156643,105070.0,105060.0,0.90128347]
[1750208767232,0.0156643,105070.0,105060.0,0.89176556]
[1750208767862,0.0156643,105070.0,105060.0,0.90128347]
[1750208768184,0.0156643,105070.0,105060.0,0.9108012]
[1750208768454,0.0156643,105070.0,105060.0,0.91080065]
[1750208768646,0.0156643,105070.0,105060.0,1.1263002]
[1750208768862,0.0156643,105070.0,105060.0,0.6953011]
[1750208769066,0.0156643,105070.0,105060.0,1.1263002]
[1750208770173,0.0156643,105070.0,105060.0,1.4663002]
[1750208770377,0.0156643,105070.0,105060.0,1.4643002]
[1750208770587,0.0156643,105070.0,105060.0,1.4693002]
[1750208771043,0.0156643,105070.0,105060.0,1.4643002]
[1750208771437,0.0156643,105070.0,105060.0,1.4713002]
[1750208775657,0.0156643,105070.0,105060.0,1.5213002]
[1750208778068,0.0156643,105070.0,105060.0,1.78679975]
[1750208778280,0.0156643,105070.0,105060.0,1.5713002]
[1750208778738,0.0156643,105070.0,105060.0,1.78679975]
[1750208778959,0.00666869,105070.0,105060.0,1.5713002]
[1750208779394,6e-05,105080.0,105070.0,0.94554099]
[1750208779609,6e-05,105080.0,105070.0,1.51167152]
[1750208780688,6e-05,105080.0,105070.0,1.30117197]
[1750208781370,6e-05,105080.0,105070.0,1.51667152]
[1750208782002,6e-05,105080.0,105070.0,1.53660452]
[1750208782704,6e-05,105080.0,105070.0,1.10560542]
[1750208782913,6e-05,105080.0,105070.0,1.53660452]
[1750208783331,6e-05,105080.0,105070.0,1.53160452]
[1750208783534,6e-05,105080.0,105070.0,1.53860452]
[1750208784378,0.0005,105100.0,105090.0,0.77359887]
[1750208784586,0.00064214,105100.0,105090.0,1.37038468]
[1750208784804,0.00064214,105100.0,105090.0,1.71038468]
[1750208785923,0.18937232,105140.0,105130.0,0.2916165]
[1750208786145,0.0012,105170.0,105150.0,0.20921834]
[1750208786374,0.21549955,105170.0,105150.0,0.13713497]
[1750208786611,0.21669955,105160.0,105150.0,0.09624176]
[1750208786844,0.22558701,105160.0,105150.0,0.09624176]
[1750208787320,0.01007101,105160.0,105150.0,0.09624176]
[1750208787535,0.0012,105160.0,105150.0,0.09624176]
[1750208787769,0.0012,105160.0,105150.0,0.13812176]
[1750208788005,0.0012,105160.0,105150.0,0.17476034]
[1750208788210,0.3412,105160.0,105150.0,0.17476034]
[1750208788439,0.56620823,105160.0,105150.0,0.13288034]
[1750208788669,0.03923889,105150.0,105120.0,0.25835597]
[1750208788932,0.21669955,105140.0,105130.0,0.13812176]
[1750208789581,0.0380388,105150.0,105130.0,0.39885213]
[1750208789582,4.832259,105150.0,105130.0,0.39885213]
[1750208789824,0.21669955,105150.0,105130.0,0.30550498]
[1750208790067,0.24529255,105150.0,105130.0,0.44340917]
[1750208790296,0.22620895,105150.0,105130.0,0.18275419]
[1750208790512,0.0012,105140.0,105130.0,0.23414622]
[1750208790720,0.0012,105140.0,105130.0,0.22463419]
[1750208790930,0.0012,105140.0,105130.0,0.24365816]
[1750208791147,0.23451854,105150.0,105130.0,0.24365816]
[1750208791148,0.22500895,105150.0,105130.0,0.24365816]
[1750208791371,0.23571844,105150.0,105130.0,0.24365816]
[1750208791584,0.22620895,105150.0,105130.0,0.45292138]
[1750208791797,0.22620895,105150.0,105130.0,0.44340962]
[1750208792016,0.0107094,105150.0,105130.0,0.47220962]
[1750208792242,0.23571854,105150.0,105130.0,0.46269777]
[1750208792930,0.22620895,105150.0,105130.0,0.46369777]
[1750208793147,0.23571854,105150.0,105130.0,0.26294622]
[1750208793390,0.22620895,105150.0,105130.0,0.27245816]
[1750208793619,0.22720895,105150.0,105130.0,0.27245816]
[1750208793881,0.22720895,105150.0,105130.0,0.47221024]
[1750208794154,0.23671854,105150.0,105130.0,0.46269839]
[1750208794397,0.22720895,105150.0,105130.0,0.44341024]
[1750208794761,0.22720895,105150.0,105130.0,0.47191024]
[1750208794980,0.22720895,105150.0,105130.0,0.511722]
[1750208795204,0.21769955,105150.0,105130.0,0.52123367]
[1750208795515,0.0022,105150.0,105130.0,0.52123322]
[1750208795729,0.001,105150.0,105140.0,0.26647476]
[1750208795960,0.001,105150.0,105140.0,0.56125789]
[1750208796152,0.001,105150.0,105140.0,0.58027968]
[1750208796354,0.001,105150.0,105140.0,0.58979035]
[1750208796835,0.59296365,105160.0,105140.0,0.58027968]
[1750208797053,0.001,105150.0,105140.0,0.58027968]
[1750208797280,0.001,105150.0,105140.0,0.3615243]
[1750208797497,0.001,105150.0,105140.0,0.37103542]
[1750208797935,0.62148843,105160.0,105140.0,0.3615243]
[1750208798153,0.61197975,105160.0,105140.0,0.3615243]
[1750208798429,0.59296266,105160.0,105140.0,0.3196443]
[1750208798640,0.23451863,105150.0,105130.0,0.12839243]
[1750208798867,0.0095094,105150.0,105130.0,0.23414613]
[1750208799089,0.21549955,105150.0,105130.0,0.4525865]
[1750208799303,0.21549955,105150.0,105130.0,0.49009844]
[1750208799523,0.22500895,105150.0,105130.0,0.4996102]
[1750208799734,0.21549955,105150.0,105130.0,0.46724168]
[1750208799955,0.001,105150.0,105130.0,0.51863307]
[1750208800172,0.001,105150.0,105130.0,0.50912168]
[1750208800394,0.001,105150.0,105140.0,0.0282]
[1750208800611,0.001,105150.0,105140.0,0.08006333]
[1750208800829,0.001,105150.0,105140.0,0.15631553]
[1750208801048,0.001,105150.0,105140.0,0.48029097]
[1750208801262,0.001,105150.0,105140.0,0.28055729]
[1750208801479,0.001,105150.0,105140.0,0.29006841]
[1750208802146,0.001,105150.0,105140.0,0.28055729]
[1750208802363,0.78916297,105160.0,105140.0,0.28055729]
[1750208802580,0.001,105150.0,105140.0,0.48028995]
[1750208803021,0.001,105150.0,105140.0,0.4898008]
[1750208803248,0.001,105150.0,105140.0,0.48028995]
[1750208803465,0.26247684,105160.0,105140.0,0.48028995]
[1750208803718,0.26448285,105160.0,105140.0,0.4898008]
[1750208804170,0.26248285,105160.0,105140.0,0.48028995]
[1750208804387,0.26248285,105160.0,105140.0,0.48029004]
[1750208804612,0.001,105150.0,105140.0,0.25255729]
[1750208804838,0.21649955,105150.0,105140.0,0.30390841]
[1750208805053,0.21649955,105150.0,105140.0,0.29439729]
[1750208805265,0.001,105150.0,105140.0,0.31341944]
[1750208805452,0.26310873,105160.0,105140.0,0.34291944]
[1750208805758,0.26310864,105160.0,105140.0,0.54265289]
[1750208805980,0.27461741,105160.0,105140.0,0.33340841]
[1750208806206,0.26310864,105160.0,105140.0,0.34291944]
[1750208806421,0.27261741,105160.0,105140.0,0.32389729]
[1750208806646,0.05711786,105160.0,105140.0,0.33340841]
[1750208806860,0.27261741,105160.0,105140.0,0.32389729]
[1750208807076,0.001,105150.0,105140.0,0.32389729]
[1750208807288,0.43073732,105160.0,105140.0,0.33340832]
[1750208807499,0.42322864,105160.0,105140.0,0.32389729]
[1750208807705,0.27461741,105160.0,105140.0,0.32389729]
[1750208807887,0.41372005,105160.0,105140.0,0.53314182]
[1750208808133,0.42261761,105160.0,105140.0,0.48179097]
[1750208808347,0.42261761,105160.0,105140.0,0.533142]
[1750208808558,0.42261761,105160.0,105140.0,0.54265294]
[1750208808975,0.41310911,105160.0,105140.0,0.55216379]
[1750208809182,0.40421155,105160.0,105140.0,0.55216379]
[1750208809615,0.08062444,105160.0,105140.0,0.55216379]
[1750208809835,0.08062444,105160.0,105140.0,0.54265294]
[1750208810043,0.09013312,105160.0,105140.0,0.533142]
[1750208810253,0.09013312,105160.0,105140.0,0.54265294]
[1750208810499,0.09013312,105160.0,105140.0,0.533142]
[1750208810720,0.26667086,105160.0,105140.0,0.32389729]
[1750208810963,0.26667077,105160.0,105140.0,0.28205729]
[1750208811206,0.28448858,105160.0,105140.0,0.32389729]
[1750208811443,0.22440843,105160.0,105150.0,0.0563]
[1750208811692,0.00890888,105160.0,105150.0,0.08950083]
[1750208811922,0.21549955,105160.0,105150.0,0.08950083]
[1750208812152,0.2434257,105160.0,105150.0,0.08950083]
[1750208812614,0.25293447,105160.0,105150.0,0.08950083]
[1750208812880,0.03743492,105160.0,105150.0,0.08950083]
[1750208813106,0.24402577,105160.0,105150.0,0.08950083]
[1750208813348,0.25293438,105160.0,105150.0,0.08950083]
[1750208813835,0.26127068,105160.0,105140.0,0.32379729]
[1750208814748,0.41939068,105160.0,105140.0,0.33330841]
[1750208814961,0.42889954,105160.0,105140.0,0.32379729]
[1750208815181,0.45173234,105160.0,105140.0,0.32379729]
[1750208815619,0.27460926,105160.0,105140.0,0.45641823]
[1750208815827,0.19439682,105160.0,105150.0,0.0576]
[1750208816027,0.41940505,105160.0,105150.0,0.0302]
[1750208816234,0.44223794,105160.0,105150.0,0.0302]
[1750208817484,0.43272926,105160.0,105150.0,0.0302]
[1750208817697,0.43272926,105160.0,105150.0,0.06450194]
[1750208817897,0.43272926,105160.0,105150.0,0.09210194]
[1750208818107,0.43272926,105160.0,105150.0,0.0578]
[1750208818517,0.43272951,105160.0,105150.0,0.0578]
[1750208819138,0.44223867,105160.0,105150.0,0.0578]
[1750208819355,0.43272999,105160.0,105150.0,0.0578]
[1750208819563,0.22673912,105160.0,105150.0,0.0578]
[1750208819774,0.41940578,105160.0,105150.0,0.0578]
[1750208819976,0.43272999,105160.0,105150.0,0.0578]
[1750208820188,0.46131999,105160.0,105150.0,0.11112411]
[1750208820394,0.45181149,105160.0,105150.0,0.11112411]
[1750208820647,0.46132008,105160.0,105150.0,0.11112411]
[1750208821485,0.46132285,105160.0,105150.0,0.11112411]
[1750208821687,0.44347497,105160.0,105150.0,0.11112411]
[1750208821904,0.79298374,105160.0,105150.0,0.11112411]
[1750208822127,0.82034057,105160.0,105150.0,0.11112411]
[1750208822334,0.81083162,105160.0,105150.0,0.0578]
[1750208823769,0.82034057,105160.0,105150.0,0.0578]
[1750208824001,0.81083162,105160.0,105150.0,0.0578]
[1750208824201,0.80132285,105160.0,105150.0,0.0578]
[1750208824428,0.57631846,105160.0,105150.0,0.0578]
[1750208824658,0.78347613,105160.0,105150.0,0.11302631]
[1750208825112,0.55842808,105160.0,105150.0,0.11302631]
[1750208825335,0.06034808,105160.0,105150.0,0.11302631]
[1750208825576,0.03751519,105160.0,105150.0,0.39947253]
[1750208825805,0.3996276,105170.0,105160.0,0.055]
[1750208826024,0.21599676,105170.0,105160.0,0.27001417]
[1750208826245,0.19316387,105170.0,105160.0,0.27001417]
[1750208826472,0.53316387,105170.0,105160.0,0.27001417]
[1750208827211,0.37508387,105170.0,105160.0,0.27001417]
[1750208827433,0.53316387,105170.0,105160.0,0.27952348]
[1750208827658,0.53316387,105170.0,105160.0,0.46970986]
[1750208827880,0.53316387,105170.0,105160.0,0.27952348]
[1750208828134,0.53316387,105170.0,105160.0,0.27001417]
[1750208828341,0.73973823,105170.0,105160.0,0.22749396]
[1750208828589,0.72356107,105170.0,105160.0,0.22749396]
[1750208828805,0.71405347,105170.0,105160.0,0.22749396]
[1750208829237,0.49855392,105170.0,105160.0,0.22749396]
[1750208829458,0.71405347,105170.0,105160.0,0.22749396]
[1750208829686,0.49855392,105170.0,105160.0,0.28372528]
[1750208830500,0.74015141,105170.0,105160.0,0.28372528]
[1750208830724,0.49855392,105170.0,105160.0,0.28372528]
[1750208830944,0.71405347,105170.0,105160.0,0.28372528]
[1750208831165,0.49855392,105170.0,105160.0,0.28372528]
[1750208831403,0.34047392,105170.0,105160.0,0.28372528]
[1750208831625,0.24761366,105180.0,105160.0,0.49922483]
[1750208831879,0.45374836,105180.0,105170.0,0.15394176]
[1750208832086,0.47276246,105180.0,105170.0,0.18258429]
[1750208832559,0.49177711,105180.0,105170.0,0.18258429]
[1750208832779,0.50068886,105180.0,105170.0,0.18258429]
[1750208832997,0.49118212,105180.0,105170.0,0.18258429]
[1750208833219,0.27568257,105180.0,105170.0,0.18258429]
[1750208833439,0.46583278,105180.0,105170.0,0.0577]
[1750208833662,0.46583278,105180.0,105160.0,0.23302352]
[1750208833663,0.00950796,105170.0,105160.0,0.23302352]
[1750208833887,0.07961382,105180.0,105170.0,0.0296]
[1750208834105,0.01580641,105180.0,105170.0,0.38072669]
[1750208834329,0.01580641,105180.0,105170.0,0.59704225]
[1750208834554,0.01580641,105180.0,105170.0,0.61158301]
[1750208834769,0.01580641,105180.0,105170.0,0.39608346]
[1750208834986,0.01580641,105180.0,105170.0,0.6987859]
[1750208835915,0.01580641,105180.0,105170.0,0.48328635]
[1750208836375,0.01580641,105180.0,105170.0,0.6987859]
[1750208836810,0.01580641,105180.0,105170.0,0.67401875]